bitfinex/quotes_ETHUSD_20240719
["timestamp","ask_amount","ask_price","bid_price","bid_amount"]
[1721379241270,2.94134,3399.9,3399.2,3.62644]
[1721379241597,2.94134,3399.9,3399.3,2.94177]
[1721379241812,2.94134,3399.9,3399.2,3.62644]
[1721379241956,2.94134,3399.9,3399.2,2.547]
[1721379242270,2.94143,3399.7,3399.2,2.547]
[1721379242453,2.94135,3399.8,3399.2,5.48885]
[1721379243595,2.94134,3399.9,3399.3,2.94177]
[1721379243887,2.9411,3400.1,3399.4,2.94169]
[1721379244554,2.94122,3400.0,3399.4,2.94169]
[1721379245395,2.94127,3399.9,3399.3,3.784812]
[1721379246593,2.94135,3399.8,3399.3,0.843062]
[1721379246794,2.94145,3399.7,3399.3,0.843062]
[1721379247356,2.94145,3399.7,3399.2,2.547]
[1721379250310,2.94127,3399.9,3399.2,2.547]
[1721379251193,2.94127,3399.9,3399.2,5.48886]
[1721379251914,2.94151,3399.7,3399.2,2.547]
[1721379252233,2.94151,3399.7,3399.6,1.061]
[1721379253101,5.883,3399.7,3399.6,1.061]
[1721379253943,2.94149,3399.7,3399.6,1.061]
[1721379254493,2.94149,3399.7,3399.0,2.94202]
[1721379254494,2.94165,3399.5,3399.4,1.061]
[1721379255512,2.94178,3399.3,3399.2,1.061]
[1721379256523,2.94178,3399.3,3398.9,2.3634]
[1721379256524,2.94201,3399.1,3398.9,1.061]
[1721379258321,2.94181,3399.3,3398.9,1.061]
[1721379258502,2.94181,3399.3,3399.2,1.061]
[1721379260295,2.94163,3399.5,3399.2,1.061]
[1721379260568,2.94118,3400.0,3399.4,4.00269]
[1721379260839,2.94084,3400.4,3399.9,1.061]
[1721379261141,2.94109,3400.1,3399.9,1.061]
[1721379262011,2.94109,3400.1,3399.5,2.94158]
[1721379262821,2.94103,3400.2,3399.3,2.94175]
[1721379263129,2.3478,3400.5,3399.1,7.76289]
[1721379263130,0.23478,3400.4,3399.1,7.76289]
[1721379263369,2.94126,3400.0,3399.2,2.94184]
[1721379263517,2.94152,3399.6,3399.1,2.276]
[1721379263724,0.23478,3400.4,3399.1,2.276]
[1721379263725,2.94162,3399.5,3399.1,2.797797]
[1721379263918,2.94194,3399.2,3398.8,2.2812]
[1721379264159,2.94193,3399.2,3398.5,5.22364]
[1721379264360,2.94196,3399.1,3398.5,5.22364]
[1721379264732,2.94193,3399.2,3398.5,5.22364]
[1721379265150,2.94196,3399.1,3398.5,5.22364]
[1721379265359,2.94196,3399.1,3398.5,6.294765]
[1721379266569,2.4392,3399.9,3398.2,2.545]
[1721379266570,2.4701,3399.2,3398.2,4.8146]
[1721379266753,2.94221,3398.9,3398.2,4.8146]
[1721379267143,2.4701,3399.2,3398.2,2.2696]
[1721379267375,2.94229,3398.8,3398.2,2.2696]
[1721379267571,2.4701,3399.2,3397.8,2.545]
[1721379267572,2.94265,3398.3,3397.8,4.8146]
[1721379267727,2.94224,3398.8,3397.9,0.775783]
[1721379267932,2.94224,3398.8,3397.8,2.2696]
[1721379267933,2.9428,3398.2,3397.8,2.2696]
[1721379268863,2.94282,3398.1,3397.8,2.2696]
[1721379269067,2.94282,3398.1,3397.5,5.41683]
[1721379270766,2.94282,3398.1,3397.5,2.4735]
[1721379271135,2.94282,3398.1,3397.3,2.94351]
[1721379271332,2.94282,3398.1,3397.3,4.076448]
[1721379271747,2.94305,3397.9,3397.3,4.076448]
[1721379272084,2.4163,3398.5,3397.4,2.94342]
[1721379272085,2.9429,3398.0,3397.4,2.94342]
[1721379272288,2.94299,3397.9,3397.2,5.38579]
[1721379272768,2.94299,3397.9,3397.2,2.4422]
[1721379272974,3.237289,3397.9,3397.2,2.4422]
[1721379273272,3.237289,3397.9,3397.0,5.48874]
[1721379273644,2.94326,3397.6,3397.0,5.48874]
[1721379273973,3.237289,3397.9,3397.0,5.48874]
[1721379273974,2.94335,3397.5,3397.0,2.545]
[1721379274671,2.94335,3397.5,3396.9,5.32435]
[1721379274873,2.94335,3397.5,3396.9,6.405694]
[1721379275742,2.94362,3397.2,3396.6,4.8662]
[1721379278871,2.9436,3397.2,3396.6,2.3212]
[1721379279077,2.94369,3397.1,3396.6,2.3212]
[1721379279280,2.94377,3397.0,3396.6,2.3212]
[1721379279431,2.94377,3397.0,3396.7,2.545]
[1721379279635,2.94377,3397.0,3396.6,2.3212]
[1721379280441,2.94377,3397.0,3396.3,2.4468]
[1721379280442,2.94396,3396.8,3396.3,2.4468]
[1721379280644,2.94387,3396.9,3396.0,4.9829]
[1721379280854,2.94412,3396.6,3396.0,9.014748]
[1721379281283,2.94401,3396.8,3396.0,9.014748]
[1721379281521,2.94403,3396.7,3396.6,2.545]
[1721379281665,2.94403,3396.7,3396.0,6.469748]
[1721379282630,2.94412,3396.6,3396.0,6.469748]
[1721379283400,2.94412,3396.6,3396.1,1.1959548]
[1721379283566,2.94412,3396.6,3396.0,2.4379]
[1721379284270,2.94412,3396.6,3396.1,2.545]
[1721379284471,2.94412,3396.6,3396.5,2.545]
[1721379284703,2.94412,3396.6,3396.0,5.38253]
[1721379286479,2.94412,3396.6,3396.5,2.545]
[1721379286680,2.94379,3397.0,3396.2,2.545]
[1721379286868,2.94377,3397.0,3396.4,2.94422]
[1721379287510,2.94377,3397.0,3396.6,2.545]
[1721379287703,2.94377,3397.0,3396.4,2.94422]
[1721379288078,7.45,3397.4,3396.7,2.94401]
[1721379288079,10.39344,3397.4,3396.7,2.94401]
[1721379288281,2.94351,3397.3,3396.7,2.94401]
[1721379289211,2.94361,3397.2,3396.4,2.545]
[1721379289502,2.94375,3397.1,3396.5,2.545]
[1721379289707,2.94375,3397.1,3396.4,2.94428]
[1721379290311,2.94369,3397.1,3396.3,2.94434]
[1721379290476,3.983059,3397.1,3396.4,2.545]
[1721379290670,2.94369,3397.1,3396.3,2.94434]
[1721379290878,2.2838,3397.0,3396.3,2.94434]
[1721379292012,2.94386,3396.9,3396.3,2.94434]
[1721379292218,2.94386,3396.9,3396.1,2.94454]
[1721379292219,2.94377,3397.0,3396.4,2.94428]
[1721379292514,2.94377,3397.0,3396.6,2.545]
[1721379292704,2.94377,3397.0,3396.4,3.787654]
[1721379292875,2.94354,3397.3,3396.5,2.2761]
[1721379293109,2.94354,3397.3,3396.7,2.94398]
[1721379294511,2.94354,3397.3,3396.7,5.48898]
[1721379294716,2.94354,3397.3,3396.7,2.94398]
[1721379295015,5.22715,3397.5,3396.7,3.760409]
[1721379295177,5.22715,3397.5,3396.8,2.94393]
[1721379295777,2.94319,3397.7,3396.8,2.94393]
[1721379296110,2.94319,3397.7,3397.0,2.545]
[1721379296318,7.45,3397.8,3397.2,2.94359]
[1721379296635,2.94308,3397.8,3397.2,2.94359]
[1721379297512,2.94323,3397.7,3397.1,2.3163]
[1721379297740,2.94323,3397.7,3397.1,5.25996]
[1721379297915,2.94323,3397.7,3397.1,6.080325]
[1721379298515,2.94323,3397.7,3397.1,8.625325]
[1721379298682,2.94323,3397.7,3397.1,6.080325]
[1721379299693,2.94323,3397.7,3397.1,3.764025]
[1721379300257,2.94326,3397.6,3397.1,3.764025]
[1721379300514,2.94314,3397.8,3397.1,2.94366]
[1721379300714,2.94314,3397.8,3397.2,2.94359]
[1721379300883,2.94324,3397.7,3397.0,2.94376]
[1721379301304,2.94324,3397.7,3397.1,2.94368]
[1721379303783,2.94324,3397.7,3397.2,2.94359]
[1721379303988,2.943,3397.9,3397.2,2.94359]
[1721379304334,2.94308,3397.8,3397.2,2.94359]
[1721379304538,2.94317,3397.7,3397.0,3.8583009]
[1721379304829,2.94325,3397.6,3397.0,2.9437]
[1721379305030,2.94342,3397.4,3396.7,2.94397]
[1721379306113,2.94352,3397.3,3396.7,2.94397]
[1721379306522,2.94352,3397.3,3396.5,2.94417]
[1721379306523,2.94361,3397.2,3396.5,2.94417]
[1721379307121,2.94361,3397.2,3396.6,2.94411]
[1721379308753,2.94369,3397.1,3396.4,2.3674]
[1721379309044,2.94369,3397.1,3396.5,2.94419]
[1721379309414,2.94369,3397.1,3396.6,2.545]
[1721379309727,2.94369,3397.1,3396.5,2.94419]
[1721379311437,2.94369,3397.1,3396.4,2.545]
[1721379311438,2.94394,3396.8,3396.4,2.545]
[1721379311645,2.94394,3396.8,3396.2,2.94444]
[1721379312307,2.94405,3396.7,3396.0,2.94463]
[1721379312715,2.94405,3396.7,3396.2,2.545]
[1721379313229,2.94405,3396.7,3396.0,2.94463]
[1721379313431,2.94412,3396.6,3396.4,2.545]
[1721379313645,2.94412,3396.6,3395.9,2.94466]
[1721379313823,2.94412,3396.6,3396.0,2.94464]
[1721379314934,2.94394,3396.8,3396.0,5.48964]
[1721379315144,2.94394,3396.8,3396.2,2.94445]
[1721379315510,5.27289,3397.0,3396.0,5.88921]
[1721379315511,2.94403,3396.7,3396.0,5.88921]
[1721379316310,2.94403,3396.7,3396.1,2.94454]
[1721379316516,2.94386,3396.9,3396.2,2.94441]
[1721379316724,2.94386,3396.9,3396.3,2.94437]
[1721379316940,2.94369,3397.1,3396.3,2.94437]
[1721379317143,2.4048,3397.3,3396.6,2.545]
[1721379317356,2.4048,3397.3,3396.3,2.94437]
[1721379317357,2.94377,3397.0,3396.3,2.94437]
[1721379317649,2.94387,3396.9,3396.3,2.94437]
[1721379318021,2.94375,3397.1,3396.4,2.94429]
[1721379318222,2.94377,3397.0,3396.4,2.94429]
[1721379318433,2.94377,3397.0,3396.6,2.545]
[1721379318742,2.94377,3397.0,3396.4,2.94429]
[1721379320453,2.94377,3397.0,3396.6,2.545]
[1721379320659,2.94377,3397.0,3396.4,2.94429]
[1721379322133,2.94408,3396.7,3396.1,2.94454]
[1721379322458,2.94408,3396.7,3396.3,2.545]
[1721379322645,5.32209,3396.9,3396.3,2.94434]
[1721379324343,5.32209,3396.9,3396.3,3.533228]
[1721379324756,2.3782,3396.9,3396.4,2.94427]
[1721379324965,5.88743,3397.1,3396.4,2.94427]
[1721379325167,2.4909,3397.2,3396.6,2.94408]
[1721379325465,2.94355,3397.3,3396.7,5.48897]
[1721379325651,2.94355,3397.3,3396.7,2.94397]
[1721379326462,2.94355,3397.3,3396.5,5.48914]
[1721379326666,2.94355,3397.3,3396.5,2.94414]
[1721379326973,2.94355,3397.3,3396.6,2.9441]
[1721379327127,2.94361,3397.2,3396.5,3.8400168]
[1721379328455,2.94361,3397.2,3396.5,6.3850168]
[1721379328657,2.94361,3397.2,3396.5,3.8400168]
[1721379329227,5.4078,3397.5,3396.3,2.94437]
[1721379329554,2.94393,3396.9,3396.3,2.94437]
[1721379330492,2.94393,3396.9,3396.4,2.545]
[1721379330772,2.94393,3396.9,3396.3,2.94437]
[1721379332434,2.94393,3396.9,3396.2,2.545]
[1721379332634,2.94393,3396.9,3395.9,5.41589]
[1721379332635,3.476043,3396.9,3395.9,5.41589]
[1721379333533,2.94393,3396.9,3395.9,5.41589]
[1721379333932,2.94408,3396.7,3396.1,2.94452]
[1721379334244,2.94408,3396.7,3395.7,2.94486]
[1721379334458,2.94408,3396.7,3395.9,5.48972]
[1721379334459,2.9442,3396.5,3395.9,5.48972]
[1721379334660,2.9442,3396.5,3395.9,2.94472]
[1721379335472,2.9442,3396.5,3396.1,2.545]
[1721379335657,2.9442,3396.5,3395.9,2.94472]
[1721379335859,2.9442,3396.5,3395.9,3.775828]
[1721379336156,2.3346,3396.4,3395.6,2.94496]
[1721379336354,5.88849,3396.5,3395.6,2.9449]
[1721379336570,2.94422,3396.5,3395.8,2.94478]
[1721379337028,5.88851,3396.5,3395.8,2.94478]
[1721379337550,2.94406,3396.7,3396.0,2.94462]
[1721379337988,2.94421,3396.5,3395.8,5.88952]
[1721379338187,2.94406,3396.7,3395.8,5.88952]
[1721379338188,2.94429,3396.4,3395.8,3.533692]
[1721379338896,2.94407,3396.7,3395.9,2.94471]
[1721379338897,2.94418,3396.6,3395.9,2.94471]
[1721379339086,2.94407,3396.7,3396.1,2.9445]
[1721379339781,2.3346,3396.8,3395.9,4.9582]
[1721379340106,5.94382,3397.0,3396.3,2.94432]
[1721379340712,2.94369,3397.1,3396.4,2.94421]
[1721379341910,2.94384,3397.0,3396.3,2.94437]
[1721379342209,2.94384,3397.0,3396.4,2.94429]
[1721379342816,2.94369,3397.1,3396.4,2.94429]
[1721379343113,2.94378,3397.0,3396.4,2.94429]
[1721379343288,2.94393,3396.9,3396.2,2.94443]
[1721379344578,2.94404,3396.7,3396.2,2.94443]
[1721379345669,2.94404,3396.7,3396.0,6.4438952]
[1721379345874,2.94404,3396.7,3396.0,3.4992852]
[1721379346513,2.94404,3396.7,3396.1,2.545]
[1721379346675,2.94404,3396.7,3396.0,3.4992852]
[1721379347077,2.94404,3396.7,3396.1,2.94453]
[1721379347823,2.94268834,3396.7,3396.1,3.83023152]
[1721379348113,2.94268834,3396.7,3396.2,2.94446]
[1721379348519,2.94268834,3396.7,3396.2,5.48946]
[1721379348695,5.88785,3396.9,3396.2,2.94446]
[1721379349114,2.94398,3396.8,3396.2,2.94446]
[1721379349295,2.94392,3396.9,3396.2,2.94446]
[1721379350506,2.94392,3396.9,3396.3,3.27794467]
[1721379350704,2.94372,3397.1,3396.4,5.35567]
[1721379352481,2.94372,3397.1,3396.5,2.94418]
[1721379352704,2.94362,3397.2,3396.6,2.9441]
[1721379353832,2.94348,3397.4,3396.7,2.94402]
[1721379354024,2.94352,3397.3,3396.6,2.9441]
[1721379354183,2.94362,3397.2,3396.6,3.84737147]
[1721379360141,2.94362,3397.2,3396.4,2.94427]
[1721379360342,2.94383,3397.0,3396.4,2.94427]
[1721379360486,2.94383,3397.0,3396.2,5.48939]
[1721379360825,2.94383,3397.0,3396.3,2.94433]
[1721379361390,2.94388,3396.9,3396.3,2.94433]
[1721379366142,2.94388,3396.9,3396.4,2.94429]
[1721379366341,2.94388,3396.9,3396.4,3.85612015]
[1721379367194,5.94334,3397.5,3396.6,2.94411]
[1721379367195,2.4693,3397.3,3396.6,2.94411]
[1721379367500,2.94359,3397.3,3396.6,5.34251]
[1721379367693,2.94359,3397.3,3396.7,1.17436302]
[1721379367694,5.88719,3397.3,3396.7,1.17436302]
[1721379367933,2.94359,3397.3,3396.7,4.11833302]
[1721379368267,2.94343,3397.4,3396.8,2.94394]
[1721379368431,2.94343,3397.4,3396.8,3.8900213]
[1721379369678,2.94336,3397.5,3396.8,3.8900213]
[1721379369864,5.41255,3397.6,3396.9,2.94382]
[1721379370068,2.94325,3397.6,3396.9,2.94382]
[1721379371934,2.94335,3397.5,3396.9,2.94382]
[1721379372135,2.94335,3397.5,3396.9,3.86705813]
[1721379372919,2.94327,3397.6,3397.0,2.94376]
[1721379379594,2.3811,3397.9,3397.1,2.2677]
[1721379379885,5.94282,3398.1,3397.4,2.9434]
[1721379380243,2.94282,3398.1,3397.5,2.94331]
[1721379383459,2.94265,3398.3,3397.6,2.94325]
[1721379383762,2.94273,3398.2,3397.6,2.94325]
[1721379383999,5.40459,3398.5,3397.6,2.94325]
[1721379384292,2.94278,3398.2,3397.6,3.531917]
[1721379384496,2.94278,3398.2,3397.6,2.94325]
[1721379386460,2.94278,3398.2,3397.7,2.3088]
[1721379387071,2.94257,3398.4,3397.7,5.25196]
[1721379387271,5.9424,3398.6,3397.9,2.94297]
[1721379387700,5.38262,3398.8,3398.0,2.94282]
[1721379387904,5.38262,3398.8,3397.7,2.3088]
[1721379387905,2.94207,3399.0,3398.4,2.94255]
[1721379388613,2.94189,3399.2,3398.4,5.88504]
[1721379388914,2.94189,3399.2,3398.5,2.94245]
[1721379389475,2.94197,3399.1,3398.5,2.94245]
[1721379391302,2.94187,3399.2,3398.6,2.4601]
[1721379391508,2.94187,3399.2,3398.6,3.294619]
[1721379391926,2.94187,3399.2,3398.6,6.236999]
[1721379392796,2.94172,3399.4,3398.8,2.94219]
[1721379394293,2.94161,3399.5,3398.8,2.94219]
[1721379394503,2.94161,3399.5,3398.9,0.9179189]
[1721379394833,0.461321,3400.3,3399.0,2.2798]
[1721379394834,2.94118,3400.0,3399.0,2.2798]
[1721379394984,2.94135,3399.8,3399.1,2.94195]
[1721379395320,2.94118,3400.0,3399.2,0.61396689]
[1721379395321,2.94119,3400.0,3399.2,0.61396689]
[1721379395688,2.9414,3399.8,3399.2,0.61396689]
[1721379397820,2.94145,3399.7,3399.2,0.61396689]
[1721379398624,2.94145,3399.7,3398.9,3.8600289]
[1721379398625,2.3537,3400.1,3398.9,0.9179189]
[1721379399122,2.275,3399.5,3398.4,2.3484]
[1721379399426,2.94218,3398.9,3398.4,2.3484]
[1721379399725,2.9423,3398.7,3398.0,2.94288]
[1721379399886,2.9423,3398.7,3398.2,0.3237162]
[1721379400704,2.94218,3398.9,3398.2,3.2664462]
[1721379401199,2.94221,3398.8,3398.2,3.2664462]
[1721379404414,2.94204,3399.0,3398.3,2.94264]
[1721379404833,2.94187,3399.2,3398.3,2.94264]
[1721379405043,2.94187,3399.2,3398.4,3.10446382]
[1721379405256,2.94187,3399.2,3398.6,2.94238]
[1721379405420,5.88348,3399.4,3398.6,2.94238]
[1721379405749,7.45,3399.8,3398.6,2.94238]
[1721379405906,2.9416,3399.5,3398.7,0.89893938]
[1721379406106,2.94187,3399.2,3398.7,0.89893938]
[1721379408911,2.94195,3399.1,3398.7,0.89893938]
[1721379409117,2.94195,3399.1,3398.5,2.94246]
[1721379409529,2.94169,3399.4,3398.4,3.10446382]
[1721379409530,2.94204,3399.0,3398.4,3.10446382]
[1721379409757,2.94204,3399.0,3398.2,3.2664462]
[1721379410317,2.942,3399.1,3398.1,2.3299]
[1721379410539,2.94253,3398.5,3398.1,2.3299]
[1721379410959,2.9426,3398.4,3398.1,2.3299]
[1721379411141,2.94267,3398.3,3397.7,2.3299]
[1721379411325,2.94267,3398.3,3397.7,5.3299]
[1721379411526,2.94267,3398.3,3397.7,8.27306]
[1721379411727,2.94267,3398.3,3397.8,0.827314]
[1721379413228,2.94253,3398.5,3397.8,0.827314]
[1721379413430,2.94253,3398.5,3397.8,6.315334]
[1721379413944,2.94256,3398.4,3397.8,6.315334]
[1721379414141,2.94256,3398.4,3397.9,1.1645234]
[1721379416055,2.94224,3398.8,3397.9,4.1075134]
[1721379416367,5.22338,3399.0,3397.9,4.1075134]
[1721379416671,2.94256,3398.4,3397.9,1.1645234]
[1721379418168,2.94256,3398.4,3398.0,2.4912]
[1721379418370,2.94256,3398.4,3398.1,0.74261074]
[1721379419081,2.94246,3398.6,3398.1,0.74261074]
[1721379419584,2.94246,3398.6,3398.0,2.4912]
[1721379419937,2.94263,3398.4,3398.0,2.4912]
[1721379420339,2.94253,3398.5,3398.0,2.4912]
[1721379421775,2.94224,3398.8,3398.0,2.4912]
[1721379421776,2.94224,3398.8,3398.0,5.4341]
[1721379422278,2.94207,3399.0,3398.4,2.9425]
[1721379422493,2.94187,3399.2,3398.6,5.37756]
[1721379423481,2.94163,3399.5,3398.7,2.94229]
[1721379423653,2.94163,3399.5,3398.8,2.94215]
[1721379423850,2.94163,3399.5,3398.9,0.831971]
[1721379424464,2.9417,3399.4,3398.9,0.831971]
[1721379425489,2.94178,3399.3,3398.9,0.831971]
[1721379425955,2.94178,3399.3,3398.6,5.37752]
[1721379427269,2.94167,3399.5,3398.8,2.9422]
[1721379430792,2.94167,3399.5,3398.9,2.94211]
[1721379432617,5.39361,3400.0,3399.1,2.94193]
[1721379432822,2.94121,3400.0,3399.2,0.35302596]
[1721379432981,2.94121,3400.0,3399.3,2.94171]
[1721379435723,2.94102,3400.2,3399.5,2.9416]
[1721379435894,2.94102,3400.2,3399.6,2.94151]
[1721379438225,2.94102,3400.2,3399.7,1.061]
[1721379438433,2.94102,3400.2,3399.7,1.687821]
[1721379439323,2.94109,3400.1,3399.7,0.626821]
[1721379442437,2.94109,3400.1,3399.7,1.687821]
[1721379445215,2.94093,3400.3,3399.7,1.687821]
[1721379445822,2.94105,3400.2,3399.7,1.687821]
[1721379446948,2.9411,3400.1,3399.7,1.687821]
[1721379447154,2.9411,3400.1,3399.7,1.061]
[1721379450416,5.88189,3400.3,3399.7,1.061]
[1721379450729,2.94085,3400.4,3400.1,1.061]
[1721379451456,2.94085,3400.4,3399.9,3.5405]
[1721379452312,2.94085,3400.4,3399.9,4.482831]
[1721379452513,2.94085,3400.4,3400.1,1.061]
[1721379452745,2.94091,3400.3,3400.1,1.061]
[1721379453326,2.94091,3400.3,3399.9,3.5405]
[1721379454251,2.94091,3400.3,3399.9,1.061]
[1721379454252,2.94114,3400.1,3399.9,1.061]
[1721379454474,2.94114,3400.1,3399.7,1.061]
[1721379454832,2.94119,3400.0,3399.7,1.061]
[1721379456347,2.94119,3400.0,3399.9,1.061]
[1721379456743,2.94119,3400.0,3399.7,1.461267]
[1721379456938,2.94119,3400.0,3399.7,1.061]
[1721379457630,2.94131,3399.9,3399.7,1.061]
[1721379464533,2.94115,3400.1,3399.7,1.061]
[1721379464848,2.94115,3400.1,3399.9,1.061]
[1721379465649,2.94117,3400.0,3399.9,1.061]
[1721379465876,2.94117,3400.0,3399.3,8.32653]
[1721379466092,2.94127,3399.9,3399.7,1.061]
[1721379466380,2.94158,3399.6,3399.4,1.061]
[1721379466590,2.94158,3399.6,3399.5,1.061]
[1721379466793,2.94158,3399.6,3399.3,1.061]
[1721379467482,2.94158,3399.6,3399.5,1.061]
[1721379467836,2.94144,3399.7,3399.5,1.061]
[1721379468037,2.94144,3399.7,3399.6,1.061]
[1721379468976,2.94157,3399.6,3399.4,1.061]
[1721379474773,2.94137,3399.8,3399.4,1.061]
[1721379474948,2.94137,3399.8,3399.6,1.061]
[1721379476241,5.88245,3400.0,3399.6,3.54]
[1721379476475,2.94121,3400.0,3399.8,1.061]
[1721379477583,2.94121,3400.0,3399.6,3.54]
[1721379477963,2.94126,3399.9,3399.6,3.54]
[1721379481351,2.94126,3399.9,3399.6,4.2282063]
[1721379481551,2.94126,3399.9,3399.6,3.54]
[1721379483568,2.94117,3400.0,3399.8,1.061]
[1721379488389,2.94137,3399.8,3399.6,1.061]
[1721379488597,2.94143,3399.7,3399.4,1.061]
[1721379490893,2.94143,3399.7,3399.1,2.94194]
[1721379491091,2.94143,3399.7,3399.4,1.061]
[1721379492687,2.94143,3399.7,3399.6,1.061]
[1721379494186,2.94143,3399.7,3399.4,1.061]
[1721379494570,2.94137,3399.8,3399.4,1.061]
[1721379494571,2.94157,3399.6,3399.4,1.061]
[1721379499302,2.94157,3399.6,3399.4,1.461294]
[1721379499720,2.94139,3399.8,3399.4,1.461294]
[1721379499881,2.94139,3399.8,3399.7,1.061]
[1721379500882,2.94121,3400.0,3399.7,1.061]
[1721379501085,2.94121,3400.0,3399.9,1.061]
[1721379502221,2.94126,3399.9,3399.7,1.061]
[1721379502383,2.94134,3399.8,3399.7,1.061]
[1721379502583,2.94134,3399.8,3399.5,1.061]
[1721379504387,2.94146,3399.7,3399.5,1.061]
[1721379510258,2.94152,3399.6,3399.2,2.3384]
[1721379510438,2.94152,3399.6,3399.5,1.061]
[1721379513819,2.9414,3399.8,3399.5,1.061]
[1721379514053,2.9414,3399.8,3399.7,1.061]
[1721379516747,2.94124,3400.0,3399.7,1.061]
[1721379517337,2.94127,3399.9,3399.7,1.061]
[1721379525281,5.88227,3400.1,3399.7,1.061]
[1721379525490,2.94112,3400.1,3400.0,1.061]
[1721379526486,2.941,3400.2,3400.0,1.061]
[1721379526689,2.941,3400.2,3400.1,1.061]
[1721379527249,2.9409,3400.4,3400.1,1.061]
[1721379527691,2.94092,3400.3,3400.1,1.061]
[1721379529447,2.94078,3400.5,3400.1,1.061]
[1721379529677,2.94084,3400.4,3400.1,1.061]
[1721379530590,2.94084,3400.4,3400.3,1.061]
[1721379530896,2.94073,3400.6,3400.3,1.061]
[1721379532292,2.94075,3400.5,3400.3,1.061]
[1721379539197,2.94083,3400.4,3400.3,1.061]
[1721379539361,2.94083,3400.4,3400.1,1.061]
[1721379542296,2.94106,3400.2,3399.6,2.94152]
[1721379542506,2.9411,3400.1,3399.9,1.061]
[1721379542704,2.94117,3400.0,3399.9,1.061]
[1721379545916,2.94106,3400.2,3399.6,5.28796]
[1721379546116,2.94106,3400.2,3400.1,1.061]
[1721379546788,5.88174,3400.4,3400.1,1.061]
[1721379547917,2.94092,3400.3,3400.1,1.061]
[1721379548499,2.94084,3400.4,3400.1,1.061]
[1721379548500,2.941,3400.2,3400.1,1.061]
[1721379552176,2.94084,3400.4,3400.1,1.061]
[1721379552376,2.94093,3400.3,3400.1,1.061]
[1721379558423,2.94069,3400.6,3400.1,1.061]
[1721379558722,2.94079,3400.5,3400.3,1.061]
[1721379559587,2.94069,3400.6,3400.3,1.061]
[1721379563033,2.94069,3400.6,3400.3,1.061]
[1721379564223,2.94076,3400.5,3400.3,1.061]
[1721379564426,2.94076,3400.5,3399.9,5.28205]
[1721379564427,2.94076,3400.5,3400.1,1.061]
[1721379564830,2.94083,3400.4,3400.1,1.061]
[1721379565643,2.94096,3400.3,3400.1,1.061]
[1721379565994,2.94096,3400.3,3399.4,9.8894]
[1721379565995,2.94123,3400.0,3399.4,9.8894]
[1721379566355,2.94159,3399.6,3399.4,7.4]
[1721379566501,2.94128,3399.9,3399.5,1.061]
[1721379566502,2.94144,3399.7,3399.5,1.061]
[1721379568219,2.94128,3399.9,3399.5,1.061]
[1721379568514,2.94128,3399.9,3399.8,1.061]
[1721379570040,2.94109,3400.1,3399.8,1.061]
[1721379570341,2.94118,3400.0,3399.8,1.061]
[1721379573376,2.94126,3399.9,3399.8,1.061]
[1721379573530,5.19856,3399.9,3399.8,1.061]
[1721379573850,2.94137,3399.8,3399.6,1.061]
[1721379576142,2.94137,3399.8,3399.2,2.94186]
[1721379576452,2.94137,3399.8,3399.7,1.061]
[1721379580666,2.94126,3399.9,3399.7,1.061]
[1721379580967,3.94104,3400.2,3399.8,1.061]
[1721379581330,2.94118,3400.0,3399.8,1.061]
[1721379582941,2.94126,3399.9,3399.8,1.061]
[1721379583600,2.94135,3399.8,3399.6,1.061]
[1721379584450,2.94143,3399.7,3399.2,3.44618708]
[1721379584695,2.94135,3399.8,3399.5,1.061]
[1721379584987,2.94153,3399.6,3399.5,1.061]
[1721379591182,2.94153,3399.6,3399.5,1.3998]
[1721379592415,2.94135,3399.8,3399.5,1.3998]
[1721379592635,2.94135,3399.8,3399.7,1.061]
[1721379594729,1.0,3400.0,3399.7,3.3335]
[1721379594937,1.0,3400.0,3399.9,1.061]
[1721379595924,3.94117,3400.0,3399.9,1.061]
[1721379599743,1.0,3400.0,3399.9,1.061]
[1721379600605,3.94117,3400.0,3399.9,1.061]
[1721379602212,1.0,3400.0,3399.9,1.061]
[1721379604005,1.0,3400.0,3399.9,3.3222]
[1721379604215,1.0,3400.0,3399.9,10.12522]
[1721379604517,1.0,3400.0,3399.9,12.68268481]
[1721379604722,1.0,3400.0,3399.9,13.23268481]
[1721379606960,1.0,3400.0,3399.9,13.23256971]
[1721379607565,1.0,3400.0,3399.9,11.69815988]
[1721379609359,1.0,3400.0,3399.9,10.67522]
[1721379613841,1.0,3400.0,3399.6,2.94147]
[1721379614038,1.0,3400.0,3399.8,1.061]
[1721379615729,1.0,3400.0,3399.8,4.00233]
[1721379615927,1.0,3400.0,3399.9,5.34246]
[1721379616128,1.0,3400.0,3399.9,6.276939]
[1721379617228,1.0,3400.0,3399.9,5.34246]
[1721379619466,1.0,3400.0,3399.8,1.061]
[1721379621649,1.0,3400.0,3399.9,2.94126]
[1721379621847,1.0,3400.0,3399.8,1.061]
[1721379622277,1.0,3400.0,3399.0,6.04204]
[1721379622278,3.94117,3400.0,3399.3,2.4458]
[1721379622477,2.2766,3399.9,3399.6,1.061]